[Event "*** Titled Tuesday Blitz"]
[Site "Chess.com"]
[Date "2021.04.27"]
[Round "3"]
[White "Fraler15"]
[Black "KononenkoD"]
[Result "0-1"]
[WhiteElo "2199"]
[BlackElo "2511"]
[TimeControl "180+1"]
[EndTime "10:28:03 PDT"]
[Termination "KononenkoD won on time"]

1. e4 {[%clk 0:03:00.9]} 1... c6 {[%clk 0:03:00.1]} 2. d4 {[%clk 0:02:58.9]}
2... d5 {[%clk 0:03:01]} 3. Nc3 {[%clk 0:02:58.9]} 3... dxe4 {[%clk 0:03:00.2]}
4. Nxe4 {[%clk 0:02:59.8]} 4... Bf5 {[%clk 0:03:00.6]} 5. Ng3 {[%clk 0:02:59.8]}
5... Bg6 {[%clk 0:03:01]} 6. Nf3 {[%clk 0:02:58.9]} 6... Nd7 {[%clk 0:03:01.3]}
7. h4 {[%clk 0:02:59.4]} 7... h6 {[%clk 0:03:00.9]} 8. h5 {[%clk 0:02:58.6]}
8... Bh7 {[%clk 0:03:01.3]} 9. Bd3 {[%clk 0:02:59.2]} 9... Bxd3 {[%clk
0:03:01.9]} 10. Qxd3 {[%clk 0:03:00.1]} 10... e6 {[%clk 0:03:02.4]} 11. Bf4
{[%clk 0:02:59.4]} 11... Qa5+ {[%clk 0:02:56]} 12. Bd2 {[%clk 0:02:59.4]} 12...
Bb4 {[%clk 0:02:56.3]} 13. Ne4 {[%clk 0:02:49.5]} 13... Ngf6 {[%clk 0:02:51.3]}
14. Nd6+ {[%clk 0:02:45.4]} 14... Ke7 {[%clk 0:02:51.7]} 15. Nc4 {[%clk
0:02:43.9]} 15... Bxd2+ {[%clk 0:02:49.7]} 16. Nfxd2 {[%clk 0:02:41.2]} 16...
Qa6 {[%clk 0:02:48.5]} 17. Qg3 {[%clk 0:02:36.4]} 17... c5 {[%clk 0:02:34]} 18.
dxc5 {[%clk 0:02:29.4]} 18... Nxc5 {[%clk 0:02:29.5]} 19. O-O-O {[%clk
0:02:28.6]} 19... Rhd8 {[%clk 0:02:20.6]} 20. a3 {[%clk 0:02:18.9]} 20... Kf8
{[%clk 0:02:17.9]} 21. Ne5 {[%clk 0:01:34.6]} 21... Rac8 {[%clk 0:02:10.3]} 22.
Kb1 {[%clk 0:01:17]} 22... Qe2 {[%clk 0:01:57.2]} 23. Rhe1 {[%clk 0:01:02.9]}
23... Qxh5 {[%clk 0:01:54.7]} 24. Ndf3 {[%clk 0:00:51.5]} 24... Nce4 {[%clk
0:01:43.7]} 25. Qf4 {[%clk 0:00:38.5]} 25... Qf5 {[%clk 0:01:41]} 26. Rxd8+
{[%clk 0:00:30.8]} 26... Rxd8 {[%clk 0:01:40.1]} 27. Qe3 {[%clk 0:00:30.8]}
27... b6 {[%clk 0:01:33.9]} 28. Nd3 {[%clk 0:00:12.1]} 28... Kg8 {[%clk
0:01:27.1]} 29. Nfe5 {[%clk 0:00:08.8]} 29... Nc5 {[%clk 0:01:17.8]} 30. Nc6
{[%clk 0:00:08.2]} 30... Rd7 {[%clk 0:01:11.7]} 31. Nxc5 {[%clk 0:00:07.4]}
31... bxc5 {[%clk 0:01:10.4]} 32. Ne5 {[%clk 0:00:02.8]} 32... Rd5 {[%clk
0:01:08.7]} 33. Nc6 {[%clk 0:00:01.7]} 33... Rd7 {[%clk 0:01:01.1]} 34. Ne5
{[%clk 0:00:01.9]} 34... Rc7 {[%clk 0:00:56.9]} 35. f3 {[%clk 0:00:01.7]} 35...
Kh7 {[%clk 0:00:55.2]} 36. g4 {[%clk 0:00:02]} 36... Qg5 {[%clk 0:00:53.5]} 37.
Qe2 {[%clk 0:00:02]} 37... Nd5 {[%clk 0:00:48.6]} 38. Qd3+ {[%clk 0:00:02.5]}
38... g6 {[%clk 0:00:48.5]} 39. Qe4 {[%clk 0:00:02.8]} 39... Qf4 {[%clk
0:00:48.3]} 40. Qe2 {[%clk 0:00:02.1]} 40... c4 {[%clk 0:00:47.6]} 41. Nxc4
{[%clk 0:00:01.9]} 41... Qxc4 {[%clk 0:00:46.6]} 42. Qxc4 {[%clk 0:00:01.8]}
42... Rxc4 {[%clk 0:00:47.5]} 43. b3 {[%clk 0:00:02.6]} 43... Rc3 {[%clk
0:00:47.4]} 44. Rd1 {[%clk 0:00:02.4]} 44... Rxf3 {[%clk 0:00:47.6]} 45. c4
{[%clk 0:00:02.7]} 45... Nc3+ {[%clk 0:00:47.9]} 0-1

[Event "*** Titled Tuesday Blitz"]
[Site "Chess.com"]
[Date "2021.04.27"]
[Round "3"]
[White "Alex-11211"]
[Black "HrvojeZagreb"]
[Result "1-0"]
[WhiteElo "2434"]
[BlackElo "2243"]
[TimeControl "180+1"]
[EndTime "10:28:03 PDT"]
[Termination "Alex-11211 won on time"]

1. e4 {[%clk 0:03:00.9]} 1... e6 {[%clk 0:02:57.8]} 2. Nc3 {[%clk 0:03:01.2]}
2... d5 {[%clk 0:02:58.3]} 3. Nf3 {[%clk 0:03:02.1]} 3... dxe4 {[%clk
0:02:58.4]} 4. Nxe4 {[%clk 0:03:01.8]} 4... Nd7 {[%clk 0:02:58.3]} 5. d4 {[%clk
0:03:01.7]} 5... Ngf6 {[%clk 0:02:58.5]} 6. Bd3 {[%clk 0:03:02.3]} 6... Nxe4
{[%clk 0:02:58.7]} 7. Bxe4 {[%clk 0:03:03.2]} 7... Nf6 {[%clk 0:02:59.1]} 8. Bd3
{[%clk 0:03:03.9]} 8... c5 {[%clk 0:02:59.4]} 9. O-O {[%clk 0:03:04]} 9... cxd4
{[%clk 0:02:59.4]} 10. Nxd4 {[%clk 0:03:04.9]} 10... Bc5 {[%clk 0:02:58.8]} 11.
Nb3 {[%clk 0:03:04.4]} 11... Bd6 {[%clk 0:02:58.6]} 12. Qf3 {[%clk 0:03:03.3]}
12... Qc7 {[%clk 0:02:56.3]} 13. Bg5 {[%clk 0:02:42.3]} 13... Bxh2+ {[%clk
0:02:49.8]} 14. Kh1 {[%clk 0:02:42.4]} 14... Be5 {[%clk 0:02:50.2]} 15. Rad1
{[%clk 0:02:25.9]} 15... Bd7 {[%clk 0:02:45.3]} 16. Rfe1 {[%clk 0:02:00.7]}
16... Bxb2 {[%clk 0:02:27.4]} 17. Bf4 {[%clk 0:01:30.8]} 17... Qc6 {[%clk
0:01:58.4]} 18. Qe2 {[%clk 0:01:20.6]} 18... Nd5 {[%clk 0:01:45.7]} 19. Be5
{[%clk 0:01:15.5]} 19... Bxe5 {[%clk 0:01:43.5]} 20. Qxe5 {[%clk 0:01:16.4]}
20... O-O {[%clk 0:01:32.4]} 21. Be4 {[%clk 0:00:50.4]} 21... Rfe8 {[%clk
0:01:09.4]} 22. Rd3 {[%clk 0:00:45.6]} 22... f5 {[%clk 0:00:38.7]} 23. Rg3
{[%clk 0:00:27.8]} 23... g6 {[%clk 0:00:29.3]} 24. Bd3 {[%clk 0:00:27.1]} 24...
Qc3 {[%clk 0:00:17.6]} 25. Nd4 {[%clk 0:00:23.3]} 25... Nf4 {[%clk 0:00:11]} 26.
Bxf5 {[%clk 0:00:14.4]} 26... exf5 {[%clk 0:00:06.9]} 27. Qxe8+ {[%clk
0:00:14.2]} 27... Rxe8 {[%clk 0:00:05.9]} 28. Rxe8+ {[%clk 0:00:14.2]} 28...
Bxe8 {[%clk 0:00:05.9]} 29. Rxc3 {[%clk 0:00:14.7]} 29... Kg7 {[%clk 0:00:04.3]}
30. Rc7+ {[%clk 0:00:14.6]} 30... Kh6 {[%clk 0:00:04.3]} 31. Rxb7 {[%clk
0:00:14.3]} 31... Nd5 {[%clk 0:00:01.6]} 32. Rxa7 {[%clk 0:00:13.2]} 1-0

[Event "*** Titled Tuesday Blitz"]
[Site "Chess.com"]
[Date "2021.04.27"]
[Round "3"]
[White "UnknownxArmy"]
[Black "campomania3"]
[Result "0-1"]
[WhiteElo "2372"]
[BlackElo "2229"]
[TimeControl "180+1"]
[EndTime "10:28:04 PDT"]
[Termination "campomania3 won by resignation"]

1. e4 {[%clk 0:02:59.2]} 1... c6 {[%clk 0:02:59.1]} 2. d4 {[%clk 0:02:58.4]}
2... d5 {[%clk 0:02:59.6]} 3. e5 {[%clk 0:02:58.9]} 3... Bf5 {[%clk 0:02:59.1]}
4. Nf3 {[%clk 0:02:58.9]} 4... e6 {[%clk 0:02:59.4]} 5. Be2 {[%clk 0:02:59.3]}
5... c5 {[%clk 0:02:59.7]} 6. O-O {[%clk 0:02:59.3]} 6... Nc6 {[%clk 0:02:57.8]}
7. Be3 {[%clk 0:02:51.4]} 7... cxd4 {[%clk 0:02:52.3]} 8. Nxd4 {[%clk
0:02:51.3]} 8... Nxd4 {[%clk 0:02:51.3]} 9. Bxd4 {[%clk 0:02:51]} 9... Ne7
{[%clk 0:02:51.4]} 10. c4 {[%clk 0:02:46.3]} 10... Nc6 {[%clk 0:02:46.2]} 11.
cxd5 {[%clk 0:02:42.1]} 11... Qxd5 {[%clk 0:02:45.4]} 12. Bf3 {[%clk 0:02:37.1]}
12... Be4 {[%clk 0:02:29.3]} 13. Bc3 {[%clk 0:01:34.1]} 13... Bxf3 {[%clk
0:02:20.3]} 14. Qxf3 {[%clk 0:01:35]} 14... Qxf3 {[%clk 0:02:18.9]} 15. gxf3
{[%clk 0:01:35.6]} 15... Bb4 {[%clk 0:02:03.1]} 16. Bxb4 {[%clk 0:01:25.5]}
16... Nxb4 {[%clk 0:02:02.9]} 17. Nc3 {[%clk 0:01:26.1]} 17... Ke7 {[%clk
0:01:48]} 18. Rad1 {[%clk 0:01:20]} 18... Rhd8 {[%clk 0:01:47.3]} 19. Kg2 {[%clk
0:01:11.8]} 19... Nd3 {[%clk 0:01:45.6]} 20. Ne4 {[%clk 0:00:45.1]} 20... Nxe5
{[%clk 0:01:43.4]} 21. b3 {[%clk 0:00:31.5]} 21... Nd3 {[%clk 0:01:21]} 22. Kg3
{[%clk 0:00:28.8]} 22... Rd7 {[%clk 0:01:20]} 23. Rd2 {[%clk 0:00:25.3]} 23...
Rad8 {[%clk 0:01:18.7]} 24. Rfd1 {[%clk 0:00:25.3]} 24... h6 {[%clk 0:01:07.6]}
25. h4 {[%clk 0:00:22.8]} 25... b6 {[%clk 0:01:00.7]} 26. Nc3 {[%clk 0:00:22.3]}
26... Ne5 {[%clk 0:00:51.5]} 27. Rxd7+ {[%clk 0:00:21.9]} 27... Rxd7 {[%clk
0:00:50.9]} 28. Rxd7+ {[%clk 0:00:21]} 28... Kxd7 {[%clk 0:00:46.5]} 29. h5
{[%clk 0:00:20.9]} 29... a6 {[%clk 0:00:34.1]} 30. Kf4 {[%clk 0:00:20.7]} 30...
Nd3+ {[%clk 0:00:32.2]} 31. Ke3 {[%clk 0:00:20.7]} 31... Ne5 {[%clk 0:00:28.2]}
32. Kf4 {[%clk 0:00:20.9]} 32... Nd3+ {[%clk 0:00:27.7]} 33. Ke3 {[%clk
0:00:21]} 33... Nb4 {[%clk 0:00:23.3]} 34. a4 {[%clk 0:00:17]} 34... Nd5+ {[%clk
0:00:22.6]} 35. Nxd5 {[%clk 0:00:14.7]} 35... exd5 {[%clk 0:00:22.5]} 36. Kd4
{[%clk 0:00:15.6]} 36... Kd6 {[%clk 0:00:22.3]} 37. f4 {[%clk 0:00:16.5]} 37...
g6 {[%clk 0:00:22.1]} 0-1

[Event "*** Titled Tuesday Blitz"]
[Site "Chess.com"]
[Date "2021.04.27"]
[Round "3"]
[White "sorrm8thatscheckm8"]
[Black "chessflav"]
[Result "1-0"]
[WhiteElo "2561"]
[BlackElo "2300"]
[TimeControl "180+1"]
[EndTime "10:28:06 PDT"]
[Termination "sorrm8thatscheckm8 won by resignation"]

1. d4 {[%clk 0:02:56.5]} 1... g6 {[%clk 0:02:59]} 2. c4 {[%clk 0:02:54.8]} 2...
Bg7 {[%clk 0:02:59.7]} 3. Nc3 {[%clk 0:02:52.8]} 3... d6 {[%clk 0:02:59.8]} 4.
g3 {[%clk 0:02:53.3]} 4... Nd7 {[%clk 0:02:59.3]} 5. Bg2 {[%clk 0:02:54.2]} 5...
e5 {[%clk 0:02:59.6]} 6. Nf3 {[%clk 0:02:55.1]} 6... Ngf6 {[%clk 0:03:00]} 7.
O-O {[%clk 0:02:54.4]} 7... O-O {[%clk 0:03:00.4]} 8. e4 {[%clk 0:02:55.2]} 8...
c6 {[%clk 0:03:00.7]} 9. h3 {[%clk 0:02:54.8]} 9... Qa5 {[%clk 0:03:01]} 10. Be3
{[%clk 0:02:55]} 10... exd4 {[%clk 0:02:54.9]} 11. Nxd4 {[%clk 0:02:55.9]} 11...
Ne5 {[%clk 0:02:55.3]} 12. Qe2 {[%clk 0:02:51.1]} 12... Re8 {[%clk 0:02:43]} 13.
a3 {[%clk 0:02:46.8]} 13... Be6 {[%clk 0:02:39.1]} 14. Nxe6 {[%clk 0:02:46.4]}
14... Rxe6 {[%clk 0:02:30.8]} 15. b4 {[%clk 0:02:46.9]} 15... Qc7 {[%clk
0:02:29.5]} 16. Rad1 {[%clk 0:02:47.2]} 16... a5 {[%clk 0:02:16.4]} 17. f4
{[%clk 0:02:32.3]} 17... Ned7 {[%clk 0:02:15.7]} 18. Bd4 {[%clk 0:02:25.1]}
18... axb4 {[%clk 0:02:08.7]} 19. axb4 {[%clk 0:02:24.5]} 19... Ra3 {[%clk
0:01:57.5]} 20. Qb2 {[%clk 0:02:23.3]} 20... Ra8 {[%clk 0:01:49.1]} 21. Kh2
{[%clk 0:02:20.4]} 21... Nh5 {[%clk 0:01:48.2]} 22. Bxg7 {[%clk 0:02:19.7]}
22... Nxg7 {[%clk 0:01:49.1]} 23. Rd2 {[%clk 0:02:15.9]} 23... Nb6 {[%clk
0:01:44.5]} 24. Qb3 {[%clk 0:02:11.5]} 24... Kh8 {[%clk 0:01:34.7]} 25. Rfd1
{[%clk 0:02:12]} 25... h5 {[%clk 0:01:33.8]} 26. c5 {[%clk 0:02:07.3]} 26... Nc8
{[%clk 0:01:19.9]} 27. e5 {[%clk 0:01:46.4]} 27... dxe5 {[%clk 0:01:17.3]} 28.
Rd8+ {[%clk 0:01:40.3]} 28... Kh7 {[%clk 0:01:15.9]} 29. Ne4 {[%clk 0:01:39.1]}
29... exf4 {[%clk 0:01:07.8]} 30. Ng5+ {[%clk 0:01:19.9]} 30... Kh6 {[%clk
0:01:07.8]} 31. h4 {[%clk 0:01:05.7]} 31... fxg3+ {[%clk 0:01:07.5]} 32. Kh1
{[%clk 0:01:04.8]} 32... Nb6 {[%clk 0:00:36.1]} 33. cxb6 {[%clk 0:00:53]} 33...
Qf4 {[%clk 0:00:30.3]} 34. Nxe6 {[%clk 0:00:44.5]} 34... Qxh4+ {[%clk
0:00:29.8]} 35. Kg1 {[%clk 0:00:42.3]} 35... Rxd8 {[%clk 0:00:21]} 36. Nxd8
{[%clk 0:00:40]} 36... Nf5 {[%clk 0:00:17.3]} 37. Nxf7+ {[%clk 0:00:38.4]} 37...
Kg7 {[%clk 0:00:14.2]} 38. Ne5 {[%clk 0:00:38.6]} 38... Qh2+ {[%clk 0:00:14.1]}
39. Kf1 {[%clk 0:00:37.7]} 39... Ne3+ {[%clk 0:00:14.1]} 40. Qxe3 {[%clk
0:00:36.2]} 1-0

[Event "*** Titled Tuesday Blitz"]
[Site "Chess.com"]
[Date "2021.04.27"]
[Round "3"]
[White "Aslanov_Umid"]
[Black "MarkoPe"]
[Result "1-0"]
[WhiteElo "2446"]
[BlackElo "2258"]
[TimeControl "180+1"]
[EndTime "10:28:07 PDT"]
[Termination "Aslanov_Umid won on time"]

1. e4 {[%clk 0:03:00.9]} 1... c5 {[%clk 0:02:59.6]} 2. Nf3 {[%clk 0:03:01.2]}
2... d6 {[%clk 0:02:59.9]} 3. d4 {[%clk 0:03:01.7]} 3... cxd4 {[%clk 0:03:00.8]}
4. Nxd4 {[%clk 0:03:02.6]} 4... Nf6 {[%clk 0:03:01.3]} 5. Nc3 {[%clk 0:03:02.8]}
5... Bd7 {[%clk 0:03:01.8]} 6. Bc4 {[%clk 0:02:58.4]} 6... e6 {[%clk 0:02:59.2]}
7. Bg5 {[%clk 0:02:57.1]} 7... Be7 {[%clk 0:02:52.2]} 8. O-O {[%clk 0:02:53.7]}
8... O-O {[%clk 0:02:51.8]} 9. Qd2 {[%clk 0:02:49.4]} 9... h6 {[%clk 0:02:46.5]}
10. Bh4 {[%clk 0:02:46.9]} 10... Nxe4 {[%clk 0:02:20.8]} 11. Nxe4 {[%clk
0:02:46.3]} 11... Bxh4 {[%clk 0:02:19.5]} 12. Nxd6 {[%clk 0:02:46.6]} 12... Bc6
{[%clk 0:02:13.1]} 13. Nxc6 {[%clk 0:01:53.1]} 13... Nxc6 {[%clk 0:02:14]} 14.
Rad1 {[%clk 0:01:51.8]} 14... Qb6 {[%clk 0:02:08.2]} 15. b3 {[%clk 0:01:35.7]}
15... Rad8 {[%clk 0:02:06.7]} 16. Qf4 {[%clk 0:01:34.8]} 16... Bg5 {[%clk
0:01:46.9]} 17. Qg3 {[%clk 0:01:33.2]} 17... Nd4 {[%clk 0:01:34.1]} 18. Ne4
{[%clk 0:01:22.3]} 18... Be7 {[%clk 0:01:21.8]} 19. c3 {[%clk 0:01:19.1]} 19...
Nf5 {[%clk 0:01:17]} 20. Qf3 {[%clk 0:01:14.9]} 20... Qa5 {[%clk 0:00:59.8]} 21.
a4 {[%clk 0:01:01.3]} 21... a6 {[%clk 0:00:52.9]} 22. Ng3 {[%clk 0:00:39.6]}
22... Nxg3 {[%clk 0:00:35.3]} 23. hxg3 {[%clk 0:00:40.5]} 23... Bf6 {[%clk
0:00:35.2]} 24. Qxb7 {[%clk 0:00:34.1]} 24... Qxc3 {[%clk 0:00:25.9]} 25. Qxa6
{[%clk 0:00:31.2]} 25... Qc2 {[%clk 0:00:20.1]} 26. Rxd8 {[%clk 0:00:31]} 26...
Rxd8 {[%clk 0:00:21]} 27. Qb6 {[%clk 0:00:31.3]} 27... Rd2 {[%clk 0:00:17.1]}
28. Qb8+ {[%clk 0:00:31]} 28... Kh7 {[%clk 0:00:16.1]} 29. Qf4 {[%clk
0:00:31.6]} 29... Bd4 {[%clk 0:00:13.4]} 30. Qxf7 {[%clk 0:00:30.1]} 30... Qb2
{[%clk 0:00:03.9]} 31. Bxe6 {[%clk 0:00:25.7]} 31... Qc3 {[%clk 0:00:02.2]} 32.
Bf5+ {[%clk 0:00:24.5]} 1-0

[Event "*** Titled Tuesday Blitz"]
[Site "Chess.com"]
[Date "2021.04.27"]
[Round "3"]
[White "MVM2008"]
[Black "MalyDominator"]
[Result "1-0"]
[WhiteElo "2266"]
[BlackElo "2430"]
[TimeControl "180+1"]
[EndTime "10:28:09 PDT"]
[Termination "MVM2008 won on time"]

1. e4 {[%clk 0:03:00.9]} 1... c5 {[%clk 0:02:55.5]} 2. Nf3 {[%clk 0:03:00.2]}
2... d6 {[%clk 0:02:55.2]} 3. d4 {[%clk 0:02:58.2]} 3... cxd4 {[%clk 0:02:56.1]}
4. Nxd4 {[%clk 0:02:58.7]} 4... Nf6 {[%clk 0:02:53.7]} 5. Nc3 {[%clk 0:02:58.7]}
5... Nc6 {[%clk 0:02:53.7]} 6. Bc4 {[%clk 0:02:58.2]} 6... e6 {[%clk 0:02:53.8]}
7. O-O {[%clk 0:02:57.1]} 7... Be7 {[%clk 0:02:53.8]} 8. Bb3 {[%clk 0:02:56.8]}
8... O-O {[%clk 0:02:53.3]} 9. Be3 {[%clk 0:02:56.9]} 9... Bd7 {[%clk
0:02:48.1]} 10. f4 {[%clk 0:02:56.6]} 10... Nxd4 {[%clk 0:02:48.2]} 11. Bxd4
{[%clk 0:02:56.4]} 11... Bc6 {[%clk 0:02:48.7]} 12. Qe2 {[%clk 0:02:49.8]} 12...
b5 {[%clk 0:02:47.6]} 13. a3 {[%clk 0:02:48.1]} 13... a5 {[%clk 0:02:46.4]} 14.
Rad1 {[%clk 0:02:41.8]} 14... b4 {[%clk 0:02:40.2]} 15. e5 {[%clk 0:02:38.5]}
15... bxc3 {[%clk 0:01:55.1]} 16. exf6 {[%clk 0:02:26.5]} 16... Bxf6 {[%clk
0:01:52.4]} 17. bxc3 {[%clk 0:02:26.6]} 17... Bb7 {[%clk 0:00:57.5]} 18. Bc4
{[%clk 0:01:51.4]} 18... Qe7 {[%clk 0:00:41.6]} 19. Bd3 {[%clk 0:01:40.7]} 19...
g6 {[%clk 0:00:35.3]} 20. Kh1 {[%clk 0:01:21.2]} 20... Rac8 {[%clk 0:00:31.8]}
21. Qg4 {[%clk 0:01:17.3]} 21... Bxd4 {[%clk 0:00:19.2]} 22. cxd4 {[%clk
0:01:16.7]} 22... Qf6 {[%clk 0:00:19.4]} 23. f5 {[%clk 0:01:11.3]} 23... exf5
{[%clk 0:00:07.2]} 24. Bxf5 {[%clk 0:01:01.1]} 24... Rc7 {[%clk 0:00:07.3]} 25.
Be4 {[%clk 0:00:51.6]} 25... Qg7 {[%clk 0:00:06.7]} 26. Bxb7 {[%clk 0:00:47.9]}
26... Rxb7 {[%clk 0:00:07.6]} 27. Qg3 {[%clk 0:00:42.9]} 27... Rc7 {[%clk
0:00:06]} 28. Qxd6 {[%clk 0:00:41.3]} 28... Rxc2 {[%clk 0:00:06]} 29. d5 {[%clk
0:00:40.2]} 29... Qb2 {[%clk 0:00:03.6]} 30. Qg3 {[%clk 0:00:39.8]} 30... Rd8
{[%clk 0:00:03.4]} 31. Qf3 {[%clk 0:00:36.7]} 31... Qb7 {[%clk 0:00:02.1]} 32.
h4 {[%clk 0:00:24.5]} 32... Rb2 {[%clk 0:00:02.3]} 33. h5 {[%clk 0:00:23.7]}
33... Qd7 {[%clk 0:00:02.1]} 34. h6 {[%clk 0:00:21.7]} 34... Rb6 {[%clk
0:00:01.2]} 35. d6 {[%clk 0:00:18.4]} 1-0

[Event "*** Titled Tuesday Blitz"]
[Site "Chess.com"]
[Date "2021.04.27"]
[Round "3"]
[White "masteryoungK"]
[Black "vovachesss"]
[Result "1-0"]
[WhiteElo "2440"]
[BlackElo "2607"]
[TimeControl "180+1"]
[EndTime "10:28:10 PDT"]
[Termination "masteryoungK won on time"]

1. e4 {[%clk 0:03:00]} 1... e5 {[%clk 0:02:51.3]} 2. Nf3 {[%clk 0:02:59.9]} 2...
Nc6 {[%clk 0:02:51.5]} 3. Bb5 {[%clk 0:03:00.5]} 3... Nf6 {[%clk 0:02:51.5]} 4.
O-O {[%clk 0:03:00.2]} 4... Nxe4 {[%clk 0:02:50.6]} 5. d4 {[%clk 0:03:00.8]}
5... Nd6 {[%clk 0:02:51]} 6. Bxc6 {[%clk 0:03:01.4]} 6... dxc6 {[%clk
0:02:51.9]} 7. dxe5 {[%clk 0:03:02.3]} 7... Nf5 {[%clk 0:02:52.3]} 8. Qxd8+
{[%clk 0:03:03.2]} 8... Kxd8 {[%clk 0:02:53]} 9. Nc3 {[%clk 0:03:04.1]} 9... Ke8
{[%clk 0:02:53.1]} 10. b3 {[%clk 0:03:02.2]} 10... h5 {[%clk 0:02:51]} 11. Bb2
{[%clk 0:03:00.1]} 11... Be7 {[%clk 0:02:49.7]} 12. Ne4 {[%clk 0:03:00.3]} 12...
Be6 {[%clk 0:02:45]} 13. Neg5 {[%clk 0:02:54.2]} 13... Rh6 {[%clk 0:02:43.8]}
14. Rfe1 {[%clk 0:02:45.5]} 14... Rd8 {[%clk 0:02:42.8]} 15. Rad1 {[%clk
0:02:29.4]} 15... Rxd1 {[%clk 0:02:40.4]} 16. Rxd1 {[%clk 0:02:30.3]} 16... Bc8
{[%clk 0:02:39.1]} 17. Re1 {[%clk 0:02:23.5]} 17... Rg6 {[%clk 0:02:37.7]} 18.
Ne4 {[%clk 0:02:13.3]} 18... b6 {[%clk 0:02:34]} 19. Nf6+ {[%clk 0:02:01.7]}
19... gxf6 {[%clk 0:02:06.5]} 20. exf6 {[%clk 0:02:02.6]} 20... Be6 {[%clk
0:02:06.8]} 21. fxe7 {[%clk 0:02:01.9]} 21... Bd5 {[%clk 0:01:56.5]} 22. Kf1
{[%clk 0:01:50.1]} 22... Bxf3 {[%clk 0:01:32.4]} 23. gxf3 {[%clk 0:01:51]} 23...
Re6 {[%clk 0:01:13.9]} 24. Rxe6 {[%clk 0:01:47.1]} 24... fxe6 {[%clk 0:01:14.8]}
25. Be5 {[%clk 0:01:42]} 25... Kxe7 {[%clk 0:00:56.7]} 26. Bxc7 {[%clk
0:01:41.7]} 26... Nd4 {[%clk 0:00:47.7]} 27. c3 {[%clk 0:01:28.9]} 27... Nxf3
{[%clk 0:00:45.3]} 28. Ke2 {[%clk 0:01:29.4]} 28... Nh4 {[%clk 0:00:31.8]} 29.
Kd3 {[%clk 0:01:21.8]} 29... Nf5 {[%clk 0:00:21.8]} 30. Ke4 {[%clk 0:01:19]}
30... Kf7 {[%clk 0:00:15.3]} 31. a4 {[%clk 0:01:16.1]} 31... Ke7 {[%clk
0:00:11.1]} 32. c4 {[%clk 0:00:53.2]} 32... Kd7 {[%clk 0:00:08]} 33. Bb8 {[%clk
0:00:47.9]} 33... a6 {[%clk 0:00:08.3]} 34. Be5 {[%clk 0:00:41]} 34... Ke7
{[%clk 0:00:06.7]} 35. Kf4 {[%clk 0:00:40.4]} 35... b5 {[%clk 0:00:03.4]} 36.
cxb5 {[%clk 0:00:33.6]} 36... cxb5 {[%clk 0:00:03.5]} 37. Kg5 {[%clk 0:00:34.2]}
37... bxa4 {[%clk 0:00:03]} 38. bxa4 {[%clk 0:00:35.1]} 38... Kf7 {[%clk
0:00:02.5]} 39. Kxh5 {[%clk 0:00:33.8]} 39... Ne7 {[%clk 0:00:03.4]} 40. Kg5
{[%clk 0:00:29.4]} 40... Nc6 {[%clk 0:00:02.3]} 41. f4 {[%clk 0:00:29]} 1-0

[Event "*** Titled Tuesday Blitz"]
[Site "Chess.com"]
[Date "2021.04.27"]
[Round "3"]
[White "ariosp"]
[Black "fabianvivasz"]
[Result "0-1"]
[WhiteElo "2207"]
[BlackElo "2374"]
[TimeControl "180+1"]
[EndTime "10:28:11 PDT"]
[Termination "fabianvivasz won on time"]

1. e4 {[%clk 0:02:45.2]} 1... e5 {[%clk 0:02:59.7]} 2. Nf3 {[%clk 0:02:44.2]}
2... Nc6 {[%clk 0:02:59.5]} 3. Bc4 {[%clk 0:02:42.2]} 3... Nf6 {[%clk
0:02:59.5]} 4. d4 {[%clk 0:02:39]} 4... exd4 {[%clk 0:02:58.5]} 5. e5 {[%clk
0:02:23.5]} 5... d5 {[%clk 0:02:57.7]} 6. Bb5 {[%clk 0:02:23.5]} 6... Ne4 {[%clk
0:02:57.5]} 7. Nxd4 {[%clk 0:02:22.4]} 7... Bc5 {[%clk 0:02:57.8]} 8. Be3 {[%clk
0:02:21.4]} 8... O-O {[%clk 0:02:55.8]} 9. Bxc6 {[%clk 0:02:19]} 9... bxc6
{[%clk 0:02:54.1]} 10. Nd2 {[%clk 0:02:17.9]} 10... Qe8 {[%clk 0:02:10.6]} 11.
Nxe4 {[%clk 0:02:06.1]} 11... dxe4 {[%clk 0:02:11.5]} 12. Qh5 {[%clk 0:02:04.1]}
12... Ba6 {[%clk 0:01:49.9]} 13. O-O-O {[%clk 0:02:03.3]} 13... Rb8 {[%clk
0:01:27.2]} 14. Qf5 {[%clk 0:01:45.8]} 14... Bc4 {[%clk 0:00:43.6]} 15. Qxe4
{[%clk 0:01:31.4]} 15... Bd5 {[%clk 0:00:37.9]} 16. Qf4 {[%clk 0:01:23.8]} 16...
Bxa2 {[%clk 0:00:36.3]} 17. Rhe1 {[%clk 0:01:09.3]} 17... Rb4 {[%clk 0:00:32.1]}
18. b3 {[%clk 0:01:02]} 18... a5 {[%clk 0:00:13]} 19. Kb2 {[%clk 0:01:01.1]}
19... a4 {[%clk 0:00:05.8]} 20. Kxa2 {[%clk 0:00:59.4]} 20... axb3+ {[%clk
0:00:06.3]} 21. cxb3 {[%clk 0:00:58.7]} 21... Qa8+ {[%clk 0:00:05.3]} 22. Kb2
{[%clk 0:00:56.5]} 22... Rfb8 {[%clk 0:00:04.3]} 23. Ra1 {[%clk 0:00:29.6]}
23... Bxd4+ {[%clk 0:00:03.4]} 24. Bxd4 {[%clk 0:00:28]} 24... Rxb3+ {[%clk
0:00:03.8]} 25. Kc2 {[%clk 0:00:27.9]} 25... Qb7 {[%clk 0:00:03.6]} 26. Ra2
{[%clk 0:00:16.8]} 26... c5 {[%clk 0:00:03.1]} 27. Ba1 {[%clk 0:00:11.4]} 27...
Qd5 {[%clk 0:00:03.2]} 28. Rd1 {[%clk 0:00:04.5]} 28... Qxg2 {[%clk 0:00:03.4]}
29. e6 {[%clk 0:00:02.5]} 29... Qg6+ {[%clk 0:00:03.5]} 0-1